[Event "Titled Tuesday Blitz March 21 Late 2023"]
[White "chessjazda"]
[Black "Winkels, Marcel"]
[BlackFideId "1003887"]
[WhiteElo "2346"]
[BlackElo "1900"]
[Result "1-0"]
[Round "05"]
[TimeControl "180+2"]
[Date "2023.03.21"]
[WhiteClock "0:00:34"]
[BlackClock "0:00:01"]

1. e4 {[%clk 0:03:00]}  c5 {[%clk 0:03:00]} 2. Nf3 {[%clk 0:03:00]}  d6 {[%clk 0:03:00]} 3. c3 {[%clk 0:03:00]}  Bg4 {[%clk 0:02:55]} 4. h3 {[%clk 0:02:59]}  Bxf3 {[%clk 0:02:55]} 5. Qxf3 {[%clk 0:02:59]}  Nc6 {[%clk 0:02:55]} 6. Be2 {[%clk 0:02:54]}  g6 {[%clk 0:02:53]} 7. d3 {[%clk 0:02:51]}  Bg7 {[%clk 0:02:52]} 8. Na3 {[%clk 0:02:51]}  Nf6 {[%clk 0:02:51]} 9. O-O {[%clk 0:02:51]}  O-O {[%clk 0:02:51]} 10. Be3 {[%clk 0:02:48]}  b6 {[%clk 0:02:50]} 11. Qg3 {[%clk 0:02:40]}  Rb8 {[%clk 0:02:42]} 12. f4 {[%clk 0:02:30]}  b5 {[%clk 0:02:42]} 13. Rac1 {[%clk 0:02:23]}  b4 {[%clk 0:02:41]} 14. Nc4 {[%clk 0:02:22]}  bxc3 {[%clk 0:02:40]} 15. bxc3 {[%clk 0:02:23]}  Na5 {[%clk 0:02:35]} 16. Nxa5 {[%clk 0:02:12]}  Qxa5 {[%clk 0:02:33]} 17. Rc2 {[%clk 0:02:10]}  Nd7 {[%clk 0:02:25]} 18. Rfc1 {[%clk 0:02:08]}  Rb7 {[%clk 0:02:19]} 19. Bg4 {[%clk 0:02:05]}  e6 {[%clk 0:02:08]} 20. f5 {[%clk 0:02:04]}  exf5 {[%clk 0:02:00]} 21. exf5 {[%clk 0:02:03]}  Ne5 {[%clk 0:02:00]} 22. Be2 {[%clk 0:02:02]}  Rfb8 {[%clk 0:01:53]} 23. fxg6 {[%clk 0:01:52]}  hxg6 {[%clk 0:01:52]} 24. d4 {[%clk 0:01:50]}  Nd7 {[%clk 0:01:41]} 25. Qxd6 {[%clk 0:01:47]}  Re8 {[%clk 0:01:13]} 26. Bf2 {[%clk 0:01:34]}  Qa3 {[%clk 0:01:09]} 27. Bc4 {[%clk 0:01:20]}  Nb6 {[%clk 0:01:01]} 28. Bb3 {[%clk 0:01:07]}  Bf8 {[%clk 0:00:50]} 29. Qxg6+ {[%clk 0:01:02]}  Bg7 {[%clk 0:00:45]} 30. Qc6 {[%clk 0:00:59]}  Rbe7 {[%clk 0:00:22]} 31. dxc5 {[%clk 0:00:59]}  Nc8 {[%clk 0:00:21]} 32. Rf1 {[%clk 0:00:51]}  Be5 {[%clk 0:00:05]} 33. Qg6+ {[%clk 0:00:46]}  Kf8 {[%clk 0:00:03]} 34. Qh6+ {[%clk 0:00:42]}  Bg7 {[%clk 0:00:02]} 35. Qg5 {[%clk 0:00:39]}  Re2 {[%clk 0:00:01]} 36. Rxe2 {[%clk 0:00:35]}  Rxe2 {[%clk 0:00:01]} 37. Qf5 {[%clk 0:00:34]} 1-0


[Site "https://www.chess.com"]

[Event "Titled Tuesday Blitz March 21 Late 2023"]
[White "Vifleemskaia, Svetlana"]
[Black "Horokoskii"]
[WhiteFideId "4129490"]
[WhiteElo "1930"]
[BlackElo "2085"]
[Result "1-0"]
[Round "05"]
[TimeControl "180+2"]
[Date "2023.03.21"]
[WhiteClock "0:00:23"]
[BlackClock "0:00:11"]

1. d4 {[%clk 0:03:00]}  Nf6 {[%clk 0:02:54]} 2. c4 {[%clk 0:03:00]}  c5 {[%clk 0:02:53]} 3. d5 {[%clk 0:03:00]}  e6 {[%clk 0:02:53]} 4. Nc3 {[%clk 0:02:59]}  exd5 {[%clk 0:02:53]} 5. cxd5 {[%clk 0:02:59]}  d6 {[%clk 0:02:54]} 6. e4 {[%clk 0:02:58]}  g6 {[%clk 0:02:54]} 7. Nf3 {[%clk 0:02:59]}  Bg7 {[%clk 0:02:53]} 8. Be2 {[%clk 0:02:59]}  O-O {[%clk 0:02:52]} 9. O-O {[%clk 0:02:59]}  a6 {[%clk 0:02:52]} 10. a4 {[%clk 0:02:59]}  Re8 {[%clk 0:02:52]} 11. Nd2 {[%clk 0:02:58]}  Qe7 {[%clk 0:02:51]} 12. Re1 {[%clk 0:02:51]}  Nbd7 {[%clk 0:02:48]} 13. f4 {[%clk 0:02:42]}  Rb8 {[%clk 0:02:33]} 14. Qc2 {[%clk 0:02:23]}  b5 {[%clk 0:01:56]} 15. axb5 {[%clk 0:02:22]}  axb5 {[%clk 0:01:56]} 16. Bxb5 {[%clk 0:02:19]}  Bb7 {[%clk 0:01:47]} 17. Bc6 {[%clk 0:02:00]}  Bxc6 {[%clk 0:01:40]} 18. dxc6 {[%clk 0:02:01]}  Nb6 {[%clk 0:01:39]} 19. Nf3 {[%clk 0:01:45]}  Qc7 {[%clk 0:01:23]} 20. e5 {[%clk 0:01:44]}  dxe5 {[%clk 0:01:21]} 21. Nxe5 {[%clk 0:01:36]}  Nfd5 {[%clk 0:01:16]} 22. Nb5 {[%clk 0:01:33]}  Qe7 {[%clk 0:01:01]} 23. c7 {[%clk 0:01:30]}  Nxc7 {[%clk 0:00:57]} 24. Nxc7 {[%clk 0:01:25]}  Qxc7 {[%clk 0:00:57]} 25. Bd2 {[%clk 0:01:25]}  Rbd8 {[%clk 0:00:43]} 26. Bc3 {[%clk 0:01:23]}  Nd5 {[%clk 0:00:43]} 27. g3 {[%clk 0:01:20]}  Nxc3 {[%clk 0:00:43]} 28. Qxc3 {[%clk 0:01:14]}  Rd5 {[%clk 0:00:42]} 29. Qf3 {[%clk 0:01:01]}  Rd2 {[%clk 0:00:33]} 30. Ra8 {[%clk 0:00:48]}  Rxa8 {[%clk 0:00:18]} 31. Qxa8+ {[%clk 0:00:47]}  Bf8 {[%clk 0:00:19]} 32. Nc4 {[%clk 0:00:32]}  Rd8 {[%clk 0:00:15]} 33. Qe4 {[%clk 0:00:30]}  Bg7 {[%clk 0:00:15]} 34. b3 {[%clk 0:00:29]}  Qd7 {[%clk 0:00:14]} 35. Kg2 {[%clk 0:00:28]}  Qd3 {[%clk 0:00:11]} 36. Qxd3 {[%clk 0:00:26]}  Rxd3 {[%clk 0:00:12]} 37. Re8+ {[%clk 0:00:26]}  Bf8 {[%clk 0:00:12]} 38. Ne5 {[%clk 0:00:24]}  Kg7 {[%clk 0:00:11]} 39. Nxd3 {[%clk 0:00:23]} 1-0


[Site "https://www.chess.com"]

[Event "Titled Tuesday Blitz March 21 Late 2023"]
[White "Bok, Benjamin"]
[Black "Kramnik, Vladimir"]
[WhiteFideId "1017063"]
[BlackFideId "4101588"]
[WhiteElo "2658"]
[BlackElo "2712"]
[Result "1/2-1/2"]
[Round "06"]
[TimeControl "180+2"]
[Date "2023.03.21"]
[WhiteClock "0:00:16"]
[BlackClock "0:00:17"]

1. d4 {[%clk 0:03:00]}  Nf6 {[%clk 0:02:59]} 2. c4 {[%clk 0:03:01]}  e6 {[%clk 0:02:59]} 3. Nc3 {[%clk 0:03:01]}  d5 {[%clk 0:02:58]} 4. cxd5 {[%clk 0:03:01]}  exd5 {[%clk 0:02:57]} 5. Bg5 {[%clk 0:03:01]}  c6 {[%clk 0:02:58]} 6. e3 {[%clk 0:03:01]}  h6 {[%clk 0:02:57]} 7. Bh4 {[%clk 0:03:01]}  Be7 {[%clk 0:02:57]} 8. Bd3 {[%clk 0:03:01]}  O-O {[%clk 0:02:57]} 9. Nge2 {[%clk 0:03:01]}  Re8 {[%clk 0:02:57]} 10. O-O {[%clk 0:03:01]}  Nbd7 {[%clk 0:02:52]} 11. a4 {[%clk 0:03:01]}  a5 {[%clk 0:02:50]} 12. f3 {[%clk 0:03:01]}  Nf8 {[%clk 0:02:43]} 13. Qc2 {[%clk 0:02:53]}  Ne6 {[%clk 0:02:38]} 14. Rad1 {[%clk 0:02:40]}  b6 {[%clk 0:02:34]} 15. h3 {[%clk 0:02:38]}  Bb7 {[%clk 0:02:32]} 16. Bf2 {[%clk 0:02:09]}  Rc8 {[%clk 0:02:30]} 17. e4 {[%clk 0:02:08]}  c5 {[%clk 0:02:30]} 18. Bb5 {[%clk 0:01:58]}  Bc6 {[%clk 0:01:59]} 19. Bxc6 {[%clk 0:01:41]}  Rxc6 {[%clk 0:01:59]} 20. exd5 {[%clk 0:01:42]}  Nxd5 {[%clk 0:01:54]} 21. dxc5 {[%clk 0:01:42]}  Bxc5 {[%clk 0:01:52]} 22. Qb3 {[%clk 0:01:06]}  Nxc3 {[%clk 0:01:45]} 23. Nxc3 {[%clk 0:01:00]}  Qh4 {[%clk 0:01:30]} 24. Qb5 {[%clk 0:00:46]}  Bxf2+ {[%clk 0:01:11]} 25. Rxf2 {[%clk 0:00:47]}  Rec8 {[%clk 0:01:07]} 26. Rfd2 {[%clk 0:00:41]}  Nc5 {[%clk 0:00:43]} 27. Nd5 {[%clk 0:00:34]}  Re6 {[%clk 0:00:32]} 28. Nxb6 {[%clk 0:00:18]}  Re1+ {[%clk 0:00:29]} 29. Rxe1 {[%clk 0:00:17]}  Qxe1+ {[%clk 0:00:28]} 30. Kh2 {[%clk 0:00:15]}  Qxd2 {[%clk 0:00:24]} 31. Nxc8 {[%clk 0:00:15]}  Qf4+ {[%clk 0:00:23]} 32. Kh1 {[%clk 0:00:15]}  Qc1+ {[%clk 0:00:20]} 33. Kh2 {[%clk 0:00:15]}  Qf4+ {[%clk 0:00:19]} 34. Kh1 {[%clk 0:00:15]}  Qc1+ {[%clk 0:00:18]} 35. Kh2 {[%clk 0:00:16]}  Qf4+ {[%clk 0:00:17]} 1/2-1/2


[Site "https://www.chess.com"]

[Event "Titled Tuesday Blitz March 21 Late 2023"]
[White "Sjugirov, Sanan"]
[Black "Movahed, Sina"]
[WhiteFideId "4189302"]
[BlackFideId "42520835"]
[WhiteElo "2569"]
[BlackElo "2225"]
[Result "1-0"]
[Round "06"]
[TimeControl "180+2"]
[Date "2023.03.21"]
[WhiteClock "0:00:05"]
[BlackClock "0:00:08"]

1. e4 {[%clk 0:03:00]}  c5 {[%clk 0:03:00]} 2. Nf3 {[%clk 0:03:00]}  d6 {[%clk 0:02:57]} 3. d4 {[%clk 0:02:58]}  cxd4 {[%clk 0:02:58]} 4. Nxd4 {[%clk 0:02:59]}  Nf6 {[%clk 0:02:59]} 5. Nc3 {[%clk 0:02:59]}  g6 {[%clk 0:02:59]} 6. Be3 {[%clk 0:02:56]}  a6 {[%clk 0:02:59]} 7. f3 {[%clk 0:02:53]}  b5 {[%clk 0:02:58]} 8. Be2 {[%clk 0:02:40]}  Bg7 {[%clk 0:02:56]} 9. O-O {[%clk 0:02:40]}  O-O {[%clk 0:02:56]} 10. a4 {[%clk 0:02:37]}  b4 {[%clk 0:02:55]} 11. Na2 {[%clk 0:02:37]}  e5 {[%clk 0:02:55]} 12. Nb3 {[%clk 0:02:36]}  Nc6 {[%clk 0:02:55]} 13. Qd2 {[%clk 0:02:10]}  Be6 {[%clk 0:02:19]} 14. Nxb4 {[%clk 0:02:00]}  Nxb4 {[%clk 0:02:17]} 15. Qxb4 {[%clk 0:02:01]}  Qc7 {[%clk 0:02:08]} 16. Rac1 {[%clk 0:01:56]}  d5 {[%clk 0:02:00]} 17. Nc5 {[%clk 0:01:43]}  Qe7 {[%clk 0:01:50]} 18. Qa5 {[%clk 0:01:36]}  d4 {[%clk 0:01:49]} 19. Bd2 {[%clk 0:01:26]}  Rfc8 {[%clk 0:01:47]} 20. b4 {[%clk 0:01:20]}  Nd7 {[%clk 0:01:23]} 21. Nxe6 {[%clk 0:01:16]}  Qxe6 {[%clk 0:01:24]} 22. c4 {[%clk 0:01:06]}  Bf8 {[%clk 0:01:14]} 23. c5 {[%clk 0:01:00]}  Qa2 {[%clk 0:01:11]} 24. Rfd1 {[%clk 0:00:53]}  Nb8 {[%clk 0:01:04]} 25. Bc4 {[%clk 0:00:50]}  Qb2 {[%clk 0:01:01]} 26. Qb6 {[%clk 0:00:45]}  Nc6 {[%clk 0:00:57]} 27. Qb7 {[%clk 0:00:44]}  Nd8 {[%clk 0:00:44]} 28. Qd7 {[%clk 0:00:34]}  a5 {[%clk 0:00:38]} 29. Bg5 {[%clk 0:00:27]}  Bg7 {[%clk 0:00:20]} 30. b5 {[%clk 0:00:20]}  h6 {[%clk 0:00:20]} 31. Bxd8 {[%clk 0:00:20]}  Rxd8 {[%clk 0:00:20]} 32. Qxf7+ {[%clk 0:00:20]}  Kh7 {[%clk 0:00:20]} 33. c6 {[%clk 0:00:20]}  d3 {[%clk 0:00:20]} 34. c7 {[%clk 0:00:19]}  Qd4+ {[%clk 0:00:12]} 35. Kh1 {[%clk 0:00:18]}  Rd7 {[%clk 0:00:12]} 36. Qe6 {[%clk 0:00:09]}  Rxc7 {[%clk 0:00:11]} 37. Qd5 {[%clk 0:00:03]}  Rd8 {[%clk 0:00:09]} 38. Qxd4 {[%clk 0:00:03]}  Rxd4 {[%clk 0:00:10]} 39. Bb3 {[%clk 0:00:02]}  Rcd7 {[%clk 0:00:08]} 40. b6 {[%clk 0:00:02]}  Rb4 {[%clk 0:00:07]} 41. Bd5 {[%clk 0:00:01]}  Rxb6 {[%clk 0:00:07]} 42. Rxd3 {[%clk 0:00:02]}  Rb4 {[%clk 0:00:08]} 43. Bg8+ {[%clk 0:00:01]}  Kxg8 {[%clk 0:00:07]} 44. Rxd7 {[%clk 0:00:02]}  Rxa4 {[%clk 0:00:07]} 45. h4 {[%clk 0:00:02]}  Ra2 {[%clk 0:00:07]} 46. Rc8+ {[%clk 0:00:02]}  Bf8 {[%clk 0:00:06]} 47. Rdd8 {[%clk 0:00:02]}  Kg7 {[%clk 0:00:06]} 48. Rxf8 {[%clk 0:00:03]}  a4 {[%clk 0:00:07]} 49. Kh2 {[%clk 0:00:03]}  a3 {[%clk 0:00:07]} 50. Rfd8 {[%clk 0:00:04]}  Ra1 {[%clk 0:00:07]} 51. Rd7+ {[%clk 0:00:04]}  Kf6 {[%clk 0:00:08]} 52. Rc6# {[%clk 0:00:05]} 1-0


[Site "https://www.chess.com"]

[Event "Titled Tuesday Blitz March 21 Late 2023"]
[White "Carlsen, Magnus"]
[Black "Vasquez Schroeder, Rodrigo"]
[WhiteFideId "1503014"]
[BlackFideId "3400042"]
[WhiteElo "2852"]
[BlackElo "2600"]
[Result "1-0"]
[Round "06"]
[TimeControl "180+2"]
[Date "2023.03.21"]
[WhiteClock "0:00:11"]
[BlackClock "0:00:18"]

1. d4 {[%clk 0:03:00]}  d5 {[%clk 0:02:55]} 2. c4 {[%clk 0:02:59]}  c6 {[%clk 0:02:56]} 3. Nf3 {[%clk 0:02:59]}  Nf6 {[%clk 0:02:56]} 4. g3 {[%clk 0:02:59]}  g6 {[%clk 0:02:51]} 5. Bg2 {[%clk 0:02:59]}  dxc4 {[%clk 0:02:51]} 6. O-O {[%clk 0:02:53]}  Bg7 {[%clk 0:02:49]} 7. Nc3 {[%clk 0:02:44]}  Nd5 {[%clk 0:02:38]} 8. e4 {[%clk 0:02:43]}  Nb6 {[%clk 0:02:37]} 9. h3 {[%clk 0:02:38]}  O-O {[%clk 0:02:31]} 10. Qe2 {[%clk 0:02:36]}  a5 {[%clk 0:02:31]} 11. Rd1 {[%clk 0:02:34]}  Na6 {[%clk 0:02:27]} 12. a3 {[%clk 0:02:34]}  e6 {[%clk 0:02:15]} 13. h4 {[%clk 0:02:30]}  h6 {[%clk 0:02:12]} 14. e5 {[%clk 0:02:30]}  Nc7 {[%clk 0:02:06]} 15. Ne4 {[%clk 0:02:28]}  Ncd5 {[%clk 0:02:04]} 16. Bd2 {[%clk 0:02:27]}  Na4 {[%clk 0:02:01]} 17. Rab1 {[%clk 0:02:10]}  b5 {[%clk 0:02:01]} 18. Nh2 {[%clk 0:02:10]}  Ba6 {[%clk 0:01:47]} 19. Ng4 {[%clk 0:02:10]}  Kh7 {[%clk 0:01:41]} 20. Nef6+ {[%clk 0:02:08]}  Nxf6 {[%clk 0:01:35]} 21. exf6 {[%clk 0:02:07]}  Bxf6 {[%clk 0:01:34]} 22. Bxh6 {[%clk 0:02:08]}  Bg7 {[%clk 0:01:16]} 23. Bxg7 {[%clk 0:02:03]}  Kxg7 {[%clk 0:01:16]} 24. Qe3 {[%clk 0:01:55]}  Rh8 {[%clk 0:01:15]} 25. Bxc6 {[%clk 0:01:44]}  Rb8 {[%clk 0:01:12]} 26. d5 {[%clk 0:01:44]}  Qd6 {[%clk 0:00:54]} 27. dxe6 {[%clk 0:01:33]}  Qxe6 {[%clk 0:00:33]} 28. Qxe6 {[%clk 0:00:51]}  fxe6 {[%clk 0:00:33]} 29. Rd7+ {[%clk 0:00:52]}  Kf8 {[%clk 0:00:32]} 30. Ne5 {[%clk 0:00:52]}  Rh6 {[%clk 0:00:26]} 31. Ra7 {[%clk 0:00:49]}  Nc5 {[%clk 0:00:24]} 32. Rd1 {[%clk 0:00:30]}  Rc8 {[%clk 0:00:24]} 33. Nd7+ {[%clk 0:00:22]}  Nxd7 {[%clk 0:00:20]} 34. Bxd7 {[%clk 0:00:23]}  Rd8 {[%clk 0:00:19]} 35. Rxa6 {[%clk 0:00:22]}  Rh7 {[%clk 0:00:19]} 36. Rad6 {[%clk 0:00:20]}  Ke7 {[%clk 0:00:18]} 37. Rxe6+ {[%clk 0:00:21]}  Kf8 {[%clk 0:00:18]} 38. Red6 {[%clk 0:00:14]}  Ke7 {[%clk 0:00:18]} 39. R6d5 {[%clk 0:00:12]}  Rh5 {[%clk 0:00:18]} 40. Bc6 {[%clk 0:00:09]}  Rdxd5 {[%clk 0:00:17]} 41. Rxd5 {[%clk 0:00:10]}  Rxd5 {[%clk 0:00:17]} 42. Bxd5 {[%clk 0:00:11]}  Kd6 {[%clk 0:00:17]} 43. Bf7 {[%clk 0:00:11]}  Kc5 {[%clk 0:00:17]} 44. Bxg6 {[%clk 0:00:10]}  b4 {[%clk 0:00:17]} 45. axb4+ {[%clk 0:00:11]}  Kxb4 {[%clk 0:00:18]} 46. Bc2 {[%clk 0:00:11]} 1-0


[Site "https://www.chess.com"]

[Event "Titled Tuesday Blitz March 21 Late 2023"]
[White "Rasulov, Vugar"]
[Black "Svane, Rasmus"]
[WhiteFideId "13402390"]
[BlackFideId "4657101"]
[WhiteElo "2509"]
[BlackElo "2597"]
[Result "0-1"]
[Round "06"]
[TimeControl "180+2"]
[Date "2023.03.21"]
[WhiteClock "0:00:05"]
[BlackClock "0:00:19"]

1. d4 {[%clk 0:03:00]}  Nf6 {[%clk 0:02:58]} 2. c4 {[%clk 0:03:01]}  e6 {[%clk 0:02:57]} 3. Nf3 {[%clk 0:03:01]}  d5 {[%clk 0:02:58]} 4. g3 {[%clk 0:03:01]}  Bb4+ {[%clk 0:02:51]} 5. Bd2 {[%clk 0:03:00]}  Be7 {[%clk 0:02:49]} 6. Bg2 {[%clk 0:02:59]}  O-O {[%clk 0:02:49]} 7. O-O {[%clk 0:02:59]}  Nbd7 {[%clk 0:02:49]} 8. Qc2 {[%clk 0:02:47]}  c6 {[%clk 0:02:49]} 9. Bf4 {[%clk 0:02:44]}  h6 {[%clk 0:02:38]} 10. Rd1 {[%clk 0:02:39]}  a5 {[%clk 0:02:30]} 11. Nbd2 {[%clk 0:02:33]}  Nh5 {[%clk 0:02:29]} 12. Be3 {[%clk 0:02:31]}  Nhf6 {[%clk 0:02:28]} 13. h3 {[%clk 0:02:31]}  b6 {[%clk 0:02:26]} 14. Bf4 {[%clk 0:02:26]}  Nh5 {[%clk 0:02:25]} 15. Be3 {[%clk 0:02:23]}  Ba6 {[%clk 0:02:23]} 16. Rac1 {[%clk 0:02:06]}  Rc8 {[%clk 0:02:23]} 17. b3 {[%clk 0:02:04]}  Ba3 {[%clk 0:02:19]} 18. Ra1 {[%clk 0:02:01]}  Qe7 {[%clk 0:02:19]} 19. Ne5 {[%clk 0:01:57]}  Bd6 {[%clk 0:02:13]} 20. Ndf3 {[%clk 0:01:47]}  Nhf6 {[%clk 0:02:13]} 21. a4 {[%clk 0:01:41]}  Rc7 {[%clk 0:02:10]} 22. Qb2 {[%clk 0:01:40]}  Rfc8 {[%clk 0:02:10]} 23. Rdc1 {[%clk 0:01:36]}  c5 {[%clk 0:02:10]} 24. Nxd7 {[%clk 0:01:36]}  Nxd7 {[%clk 0:01:53]} 25. cxd5 {[%clk 0:01:34]}  exd5 {[%clk 0:01:54]} 26. Nh4 {[%clk 0:01:22]}  Qe6 {[%clk 0:01:52]} 27. g4 {[%clk 0:01:20]}  Bf8 {[%clk 0:01:43]} 28. Nf5 {[%clk 0:01:16]}  h5 {[%clk 0:01:42]} 29. Bf4 {[%clk 0:01:06]}  hxg4 {[%clk 0:01:34]} 30. Bxc7 {[%clk 0:00:57]}  Qxf5 {[%clk 0:01:31]} 31. hxg4 {[%clk 0:00:57]}  Qxg4 {[%clk 0:01:27]} 32. Bg3 {[%clk 0:00:57]}  Bxe2 {[%clk 0:01:23]} 33. Bxd5 {[%clk 0:00:50]}  Bd6 {[%clk 0:01:21]} 34. Re1 {[%clk 0:00:33]}  Bxg3 {[%clk 0:01:13]} 35. Qxe2 {[%clk 0:00:32]}  Bxf2+ {[%clk 0:01:11]} 36. Kxf2 {[%clk 0:00:28]}  Qxd4+ {[%clk 0:01:10]} 37. Qe3 {[%clk 0:00:29]}  Qxd5 {[%clk 0:01:10]} 38. Rad1 {[%clk 0:00:29]}  Qf5+ {[%clk 0:00:51]} 39. Qf3 {[%clk 0:00:29]}  Qc2+ {[%clk 0:00:51]} 40. Kg1 {[%clk 0:00:18]}  Nf6 {[%clk 0:00:49]} 41. Rd6 {[%clk 0:00:17]}  c4 {[%clk 0:00:47]} 42. bxc4 {[%clk 0:00:18]}  Rxc4 {[%clk 0:00:34]} 43. Rd8+ {[%clk 0:00:09]}  Kh7 {[%clk 0:00:34]} 44. Re2 {[%clk 0:00:07]}  Qc1+ {[%clk 0:00:28]} 45. Kf2 {[%clk 0:00:06]}  Rf4 {[%clk 0:00:27]} 46. Rdd2 {[%clk 0:00:03]}  Rxf3+ {[%clk 0:00:26]} 47. Kxf3 {[%clk 0:00:04]}  Qa3+ {[%clk 0:00:26]} 48. Kg2 {[%clk 0:00:04]}  Qxa4 {[%clk 0:00:26]} 49. Re3 {[%clk 0:00:05]}  Qg4+ {[%clk 0:00:26]} 50. Kf1 {[%clk 0:00:05]}  g6 {[%clk 0:00:22]} 51. Rf2 {[%clk 0:00:04]}  Kg7 {[%clk 0:00:22]} 52. Ref3 {[%clk 0:00:04]}  Qd4 {[%clk 0:00:21]} 53. Kg2 {[%clk 0:00:04]}  a4 {[%clk 0:00:21]} 54. Rf4 {[%clk 0:00:05]}  Qd5+ {[%clk 0:00:19]} 0-1


[Site "https://www.chess.com"]

[Event "Titled Tuesday Blitz March 21 Late 2023"]
[White "Wagner, Dennis"]
[Black "Van Foreest, Jorden"]
[WhiteFideId "24650684"]
[BlackFideId "1039784"]
[WhiteElo "2470"]
[BlackElo "2633"]
[Result "0-1"]
[Round "06"]
[TimeControl "180+2"]
[Date "2023.03.21"]
[WhiteClock "0:00:04"]
[BlackClock "0:00:56"]

1. d4 {[%clk 0:03:00]}  g6 {[%clk 0:02:58]} 2. c4 {[%clk 0:02:59]}  Bg7 {[%clk 0:02:59]} 3. e4 {[%clk 0:02:58]}  d6 {[%clk 0:02:59]} 4. Nc3 {[%clk 0:02:59]}  Nc6 {[%clk 0:02:56]} 5. d5 {[%clk 0:02:51]}  Nd4 {[%clk 0:02:54]} 6. Be3 {[%clk 0:02:51]}  c5 {[%clk 0:02:53]} 7. Nge2 {[%clk 0:02:51]}  Nxe2 {[%clk 0:02:49]} 8. Bxe2 {[%clk 0:02:52]}  Nf6 {[%clk 0:02:46]} 9. O-O {[%clk 0:02:52]}  O-O {[%clk 0:02:46]} 10. h3 {[%clk 0:02:50]}  a6 {[%clk 0:02:44]} 11. a4 {[%clk 0:02:49]}  e5 {[%clk 0:02:43]} 12. Kh1 {[%clk 0:02:36]}  Kh8 {[%clk 0:02:42]} 13. Qd2 {[%clk 0:02:29]}  Qe7 {[%clk 0:02:40]} 14. a5 {[%clk 0:02:28]}  Bd7 {[%clk 0:02:38]} 15. Rab1 {[%clk 0:02:16]}  b5 {[%clk 0:02:28]} 16. b4 {[%clk 0:02:04]}  cxb4 {[%clk 0:02:20]} 17. Rxb4 {[%clk 0:02:03]}  bxc4 {[%clk 0:02:17]} 18. Rfb1 {[%clk 0:01:49]}  Rfc8 {[%clk 0:02:08]} 19. Rxc4 {[%clk 0:01:42]}  Nh5 {[%clk 0:01:56]} 20. Rb6 {[%clk 0:01:36]}  Nf4 {[%clk 0:01:53]} 21. Bf1 {[%clk 0:01:12]}  h5 {[%clk 0:01:49]} 22. Rxc8+ {[%clk 0:00:47]}  Bxc8 {[%clk 0:01:50]} 23. Ne2 {[%clk 0:00:47]}  g5 {[%clk 0:01:45]} 24. Ng3 {[%clk 0:00:41]}  Bf6 {[%clk 0:01:40]} 25. Nf5 {[%clk 0:00:31]}  Bxf5 {[%clk 0:01:38]} 26. exf5 {[%clk 0:00:32]}  g4 {[%clk 0:01:31]} 27. Rxa6 {[%clk 0:00:25]}  Rg8 {[%clk 0:01:30]} 28. Bxf4 {[%clk 0:00:20]}  exf4 {[%clk 0:01:30]} 29. Qxf4 {[%clk 0:00:21]}  Bg5 {[%clk 0:01:20]} 30. Qxd6 {[%clk 0:00:20]}  Qe1 {[%clk 0:01:17]} 31. Kg1 {[%clk 0:00:16]}  gxh3 {[%clk 0:01:18]} 32. Qh2 {[%clk 0:00:10]}  Bh4 {[%clk 0:01:07]} 33. g3 {[%clk 0:00:11]}  Bxg3 {[%clk 0:01:07]} 34. Rh6+ {[%clk 0:00:11]}  Kg7 {[%clk 0:01:07]} 35. Qxg3+ {[%clk 0:00:11]}  Kf8 {[%clk 0:01:07]} 36. Rh8 {[%clk 0:00:06]}  Rxh8 {[%clk 0:01:07]} 37. Qd6+ {[%clk 0:00:06]}  Kg7 {[%clk 0:01:04]} 38. f6+ {[%clk 0:00:05]}  Kh7 {[%clk 0:01:02]} 39. Qf4 {[%clk 0:00:05]}  Rg8+ {[%clk 0:00:59]} 40. Kh2 {[%clk 0:00:05]}  Qxf1 {[%clk 0:00:56]} 41. Qf5+ {[%clk 0:00:06]}  Kh6 {[%clk 0:00:56]} 42. Qf4+ {[%clk 0:00:05]}  Rg5 {[%clk 0:00:56]} 43. Qxg5+ {[%clk 0:00:04]}  Kxg5 {[%clk 0:00:56]} 0-1


[Site "https://www.chess.com"]

[Event "Titled Tuesday Blitz March 21 Late 2023"]
[White "Klekowski, Maciej"]
[Black "Maghsoodloo, Parham"]
[WhiteFideId "1132717"]
[BlackFideId "12539929"]
[WhiteElo "2540"]
[BlackElo "2647"]
[Result "0-1"]
[Round "06"]
[TimeControl "180+2"]
[Date "2023.03.21"]
[WhiteClock "0:00:02"]
[BlackClock "0:01:17"]

1. c4 {[%clk 0:03:00]}  e5 {[%clk 0:02:59]} 2. Nc3 {[%clk 0:03:01]}  Nf6 {[%clk 0:03:00]} 3. g3 {[%clk 0:03:01]}  Nc6 {[%clk 0:03:00]} 4. Bg2 {[%clk 0:03:01]}  Bc5 {[%clk 0:03:01]} 5. e3 {[%clk 0:02:58]}  O-O {[%clk 0:03:01]} 6. Nge2 {[%clk 0:02:58]}  d6 {[%clk 0:03:01]} 7. O-O {[%clk 0:02:59]}  a6 {[%clk 0:03:01]} 8. h3 {[%clk 0:02:59]}  Bf5 {[%clk 0:02:34]} 9. d4 {[%clk 0:02:58]}  Ba7 {[%clk 0:02:33]} 10. g4 {[%clk 0:02:57]}  Bd7 {[%clk 0:02:30]} 11. Nd5 {[%clk 0:02:32]}  exd4 {[%clk 0:02:25]} 12. exd4 {[%clk 0:02:29]}  Nxd5 {[%clk 0:02:25]} 13. cxd5 {[%clk 0:02:30]}  Ne7 {[%clk 0:02:24]} 14. Nf4 {[%clk 0:02:23]}  Ng6 {[%clk 0:02:16]} 15. Nxg6 {[%clk 0:02:23]}  hxg6 {[%clk 0:02:15]} 16. Be3 {[%clk 0:02:23]}  f5 {[%clk 0:02:10]} 17. Qd3 {[%clk 0:02:02]}  Bb5 {[%clk 0:02:06]} 18. Qd2 {[%clk 0:01:58]}  Bxf1 {[%clk 0:02:06]} 19. Rxf1 {[%clk 0:01:55]}  Qf6 {[%clk 0:02:03]} 20. g5 {[%clk 0:01:38]}  Qe7 {[%clk 0:02:01]} 21. Bf4 {[%clk 0:01:30]}  Rfe8 {[%clk 0:01:59]} 22. Bf3 {[%clk 0:01:30]}  Qd7 {[%clk 0:01:57]} 23. Rc1 {[%clk 0:01:22]}  Re7 {[%clk 0:01:53]} 24. b3 {[%clk 0:01:19]}  Qb5 {[%clk 0:01:47]} 25. Kg2 {[%clk 0:01:08]}  a5 {[%clk 0:01:40]} 26. Rc4 {[%clk 0:01:01]}  Bb6 {[%clk 0:01:38]} 27. Qc2 {[%clk 0:00:52]}  Rae8 {[%clk 0:01:31]} 28. a4 {[%clk 0:00:46]}  Qd7 {[%clk 0:01:31]} 29. h4 {[%clk 0:00:36]}  Re4 {[%clk 0:01:31]} 30. Qd2 {[%clk 0:00:35]}  Qf7 {[%clk 0:01:30]} 31. Bxe4 {[%clk 0:00:33]}  Rxe4 {[%clk 0:01:29]} 32. f3 {[%clk 0:00:33]}  Re7 {[%clk 0:01:28]} 33. Be3 {[%clk 0:00:06]}  Qxd5 {[%clk 0:01:25]} 34. Bf2 {[%clk 0:00:06]}  Qe6 {[%clk 0:01:23]} 35. Qd3 {[%clk 0:00:01]}  Qe2 {[%clk 0:01:20]} 36. Qxe2 {[%clk 0:00:01]}  Rxe2 {[%clk 0:01:21]} 37. b4 {[%clk 0:00:02]}  d5 {[%clk 0:01:17]} 0-1


[Site "https://www.chess.com"]